Cogmind - Beta 11 @@@ ROGUE MODE // 2022.03.22 @ 06:41:22 // Halloween2019/Abominations Player: Shin Result: Destroyed by Lesser Abomination with Small Laser Performance ------------- Evolutions (0) 0 Regions Visited (1) 200 Robots Destroyed (2) 10 Value Destroyed (13) 13 Prototype IDs (0) 0 Alien Tech Used (0) 0 Bonus (0) 0 TOTAL SCORE: 223 Bonus ------- None Cogmind --------- Core Integrity 0/250 Matter 270/300 Energy 96/100 System Corruption 9% Temperature Cool (8) Movement Treading (160) Location -10/Materials Parts ------- > --- POWER (1) -------- (None) > --- PROPULSION (2) --- Light Treads Light Treads > --- UTILITY (2) ------ Small Storage Unit Large Storage Unit > --- WEAPON (2) ------- Small Laser Light Cannon > --- INVENTORY (15) --- Small Laser Light Assault Rifle Peak State ------------ > --- POWER ------------ Light Ion Engine > --- PROPULSION ------- Compact Wheel Compact Wheel > --- UTILITY ---------- Small Storage Unit Large Storage Unit > --- WEAPON ----------- Medium Laser Light Cannon > --- INVENTORY -------- Light Treads Light Treads Small Laser Small Laser Light Assault Rifle [Rating: 7] Favorites ----------- Power Light Ion Engine Engine Light Ion Engine Propulsion Aluminum Leg Treads Light Treads Leg Aluminum Leg Wheel Compact Wheel Utility Small Storage Unit Storage Small Storage Unit Weapon Light Cannon Energy Gun Medium Laser Ballistic Gun Light Assault Rifle Ballistic Cannon Light Cannon Build | -11 -10 ------- Run | Scr Mat Slots Evolved . | . . Power . | . . Propulsion . | . . Utility . | . . Weapon . | . . Parts Attached 10 | . 10 Power 1 | . 1 Engine 1 | . 1 Core . | . . Reactor . | . . Propulsion 4 | . 4 Treads 2 | . 2 Leg . | . . Wheel 2 | . 2 Hover . | . . Flight . | . . Utility 1 | . 1 Device . | . . Storage 1 | . 1 Processor . | . . Hackware . | . . Protection . | . . Artifact . | . . Weapon 4 | . 4 Energy Gun 2 | . 2 Energy Cannon . | . . Ballistic Gun 1 | . 1 Ballistic Cannon 1 | . 1 Launcher . | . . Special Weapon . | . . Impact Weapon . | . . Slashing Weapon . | . . Piercing Weapon . | . . Special Melee Weapon . | . . Unidentified Prototypes . | . . Parts Lost 6 | . 6 Power 2 | . 2 Propulsion 4 | . 4 Utility . | . . Weapon . | . . Highest Loss Streak 2 | . 2 To Critical Strikes . | . . Average Slot Usage (%) 80 | . 80 Engine 4 | . 4 Treads 5 | . 5 Leg 9 | . 9 Wheel 9 | . 9 Storage 22 | . 22 Energy Gun 12 | . 12 Ballistic Gun 1 | . 1 Ballistic Cannon 13 | . 13 Naked Turns . | . . Heaviest Build 33 | 10 33 Greatest Support 40 | 20 40 Greatest Overweight (x) 9 | . 9 Average Overweight (x) . | . . Largest Inventory Capacity 15 | 8 15 Average Capacity 11 | 8 12 Most Carried 8 | 6 8 Average Carried 5 | 6 5 Final Capacity 15 | 8 15 Final Carried 6 | 6 2 Class Distribution -------------------- 100% | Mutant Dominant Class ---------------- Mutant | -10/Materials Resources | -11 -10 ----------- Run | Scr Mat Matter Collected 250 | 200 50 Remotely . | . . Salvage Created 85 | 85 . Parts 4 | 4 . Haulers Intercepted . | . . Recyclers Shooed . | . . Parts Field Recycled . | . . Retrieved Matter . | . . Parts Self-Destructed . | . . Prevented . | . . Kills | -11 -10 ------- Run | Scr Mat Combat Hostiles Destroyed . | . . Classes Destroyed 2 | 2 . Tunneler 1 | 1 . Recycler 1 | 1 . Best Kill Streak 2 | 2 . Combat Bots Only . | . . Max Kills in Single Turn 1 | 1 . Gunslinging . | . . Exploded . | . . Melee . | . . Uniques/NPCs Destroyed . | . . Combat | -11 -10 -------- Run | Scr Mat Damage Taken 1358 | . 1358 Core 253 | . 253 Absorbed by Shields . | . . Core Remaining (%) 100 | 100 . Volleys Fired 9 | 9 . Largest 2 | 2 . Hottest 80 | 80 . Shots Fired 18 | 18 . Gun 18 | 18 . Cannon . | . . Launcher . | . . Special . | . . Kinetic . | . . Thermal 18 | 18 . Explosive . | . . Electromagnetic . | . . Robot Hit Streak 9 | 9 . Robot Miss Streak 3 | 3 . Penetration Max . | . . Secondary Targets . | . . Shots Hit Robots 11 | 11 . Core Hits 3 | 3 . Critical Kills . | . . Critical Parts Destroyed . | . . Critical Strikes . | . . Melee Attacks . | . . Impact . | . . Slashing . | . . Piercing . | . . Sneak Attacks . | . . Combat Hostiles . | . . Follow-up Attacks . | . . Damage Inflicted 121 | 121 . Guns 121 | 121 . Cannons . | . . Explosions . | . . Melee . | . . Ramming . | . . Kinetic . | . . Thermal 121 | 121 . Explosive . | . . Electromagnetic . | . . Impact . | . . Slashing . | . . Piercing . | . . Highest Corruption 9 | . 9 Average Corruption 4 | . 4 Corruption Purged . | . . Corruption Blocked . | . . Effects 2 | . 2 Heat Flow Errors 1 | . 1 Parts Rejected 1 | . 1 Overload Shots . | . . Overflow Damage . | . . Projectiles . | . . Explosions . | . . Melee . | . . Knockbacks . | . . Impact . | . . Kinetic . | . . Secondary . | . . Self-Inflicted Damage . | . . Shots . | . . Rammed . | . . Targets Rammed . | . . Kicked . | . . Crushed . | . . Highest Temperature 162 | 162 93 Average Temperature 81 | 87 46 Received Heat Transfer 105 | . 105 Siege Activations . | . . Robots Corrupted . | . . Combat Hostiles . | . . Parts Fried . | . . Impact Corruptions . | . . Robots Melted . | . . Combat Hostiles . | . . Parts Melted 1 | 1 . Heat Transferred 275 | 275 . Parts Sabotaged . | . . Parts Stolen . | . . Parts Stripped . | . . Power Chain Reactions . | . . Missiles Intercepted . | . . Alert | -11 -10 ------- Run | Scr Mat Peak Influence 10 | 10 6 Initial 6 | . 6 Average 1 | 3 1 Maximum Alert Level . | . . Low Security (%) 100 | 100 100 Level 1 . | . . Level 2 . | . . Level 3 . | . . Level 4 . | . . Level 5 . | . . High Security . | . . Max Security . | . . Squads Dispatched 7 | . 7 Investigation 1 | . 1 Extermination . | . . Reinforcement 3 | . 3 Assault 3 | . 3 Garrison . | . . Intercept . | . . Searches Triggered . | . . Construction Impeded . | . . Haulers Reinforced . | . . Active Scanning Responses . | . . Cargo Convoy Interrupts . | . . Stealth | -11 -10 --------- Run | Scr Mat Distress Signals 1 | . 1 Communications Jammed . | . . Distress Signals . | . . Times Spotted 9 | . 9 Peak Tracking Total 5 | . 5 Tactical Retreats 2 | . 2 Traps | -11 -10 ------- Run | Scr Mat Traps Triggered 2 | . 2 Indirectly . | . . Trap Hack Attempts . | . . Triggered . | . . Disarmed . | . . Reprogrammed . | . . Reused . | . . Traps Extracted . | . . Installed . | . . Triggered . | . . Machines | -11 -10 ---------- Run | Scr Mat Machines Disabled . | . . Max in Single Turn . | . . Machines Sabotaged . | . . Garrisons Compromised . | . . Overloaded Fab Kills . | . . Hacking | -11 -10 --------- Run | Scr Mat Machines Accessed . | . . Terminals . | . . Fabricators . | . . Repair Stations . | . . Recycling Units . | . . Scanalyzers . | . . Garrison Access . | . . Total Hacks . | . . Successful . | . . Failed . | . . Catastrophic . | . . Database Lockouts . | . . Manual . | . . Terminals . | . . Fabricators . | . . Repair Stations . | . . Recycling Units . | . . Scanalyzers . | . . Garrison Access . | . . Terminal Hacks . | . . Fabricator Hacks . | . . Repair Station Hacks . | . . Recycling Unit Hacks . | . . Scanalyzer . | . . Garrison Access Hacks . | . . Unauthorized Hacks . | . . Terminals . | . . Fabricators . | . . Repair Stations . | . . Recycling Units . | . . Scanalyzers . | . . Garrison Access . | . . Data Cores Recovered . | . . Used . | . . Hacking Detections . | . . Full Trace Events . | . . Feedback Events . | . . Feedback Blocked . | . . Robot Schematics Acquired . | . . Robots Built . | . . Authchips . | . . Time . | . . Total Robot Build Rating . | . . Part Schematics Acquired . | . . Parts Built . | . . Authchips . | . . Time . | . . Total Part Build Rating . | . . Parts Repaired . | . . Time . | . . Parts Recycled . | . . Recycled Matter . | . . Retrieved Matter . | . . Retrieved Components . | . . Parts Scanalyzed . | . . Part Schematics Acquired . | . . Parts Damaged . | . . Bothacking | -11 -10 ------------ Run | Scr Mat Used RIF Installer . | . . Robots Hacked . | . . Non-combat . | . . Combat . | . . Robot Hacks Applied . | . . Relay Couplers Released . | . . Fabnet Peak Effective % . | . . Robots Rewired . | . . Allies Hacked . | . . Hacks Repelled . | . . Allies | -11 -10 -------- Run | Scr Mat Total Allies . | . . Largest Group . | . . Highest-Rated Group . | . . Highest-Rated Ally . | . . Total Orders . | . . Ally Attacks . | . . Total Damage . | . . Kills . | . . Allies Corrupted . | . . Allies Melted . | . . Intel | -11 -10 ------- Run | Scr Mat Robot Analysis Total . | . . Derelict Logs Recovered . | . . Drone Launches . | . . Drone Recoveries . | . . Exploration | -11 -10 ------------- Run | Scr Mat Turns Passed 411 | 37 374 Spaces Moved 306 | 9 297 Core 3 | . 3 Treads 44 | . 44 Legs 109 | 9 100 Wheels 150 | . 150 Hover . | . . Flight . | . . Fastest Speed 100 | 120 100 Average Speed 121 | 120 121 Slowest Speed 500 | 120 500 Overloaded Moves . | . . Propulsion Burnouts . | . . Robots Hopped . | . . Cave-ins Triggered . | . . Exploration Rate (%) 24 | 2 46 Regions Visited 1 Branch Regions . Pre-discovered Areas . | . . Known Exits Taken . | . . Unknown Exits Taken 1 | 1 . Scrap Searched . | . . Spaces Dug . | . . Terrain Destroyed . | . . Melee . | . . Projectile . | . . AOE . | . . Terrain Rammed . | . . Walls Destroyed . | . . Machines Disabled . | . . Actions | -11 -10 --------- Run | Scr Mat Total 328 | 17 311 Wait . | . . Move 303 | 8 295 Hop . | . . Pick Up 4 | . 4 Fast Attach . | . . Attach 9 | . 9 Detach 1 | . 1 Swap 1 | . 1 Drop 1 | . 1 Fire 9 | 9 . Melee . | . . Ram . | . . Kick . | . . Crush . | . . Escape Stasis . | . . Rewire . | . . Trap . | . . Miscellaneous . | . . Route ------- -11/Scrapyard -10/Materials History --------- Turn | Location | Event 1 | -11/Scrapyard | Discovered new exit (range 3) 38 | -11/Scrapyard | Entered Materials 242 | -10/Materials | Discovered new exit (range 11) 300 | -10/Materials | Core integrity fell below 50% 309 | -10/Materials | Build established: Mutant 334 | -10/Materials | Core integrity fell below 20% 412 | -10/Materials | Destroyed by Lesser Abomination with Small Laser Last Messages --------------- Engulfed by violent ripples tearing at the fabric of space. Com. Wheel destroyed. Unstable Anomaly suddenly flashes brightly. Engulfed by violent ripples tearing at the fabric of space. Parts repaired by Paradox Anomaly. Unstable Anomaly suddenly flashes brightly. Engulfed by violent ripples tearing at the fabric of space. Parts repaired by Paradox Anomaly. ALERT: Dispatching additional forces to engage threats. System corrupted: Heat flow error (+116). System corrupted: Med. Laser rejected. Hungry Anomaly eats Med. Laser. Hungry Anomaly eats Med. Storage Unit. Parts repaired by Paradox Anomaly. Hungry Anomaly eats Sml. Storage Unit. Parts repaired by Paradox Anomaly. Lesser Abomination spits out Sml. Storage Unit. Lesser Abomination feeds off Hungry Anomaly, taking Med. Storage Unit. Hungry Anomaly eats Sml. Storage Unit. Parts repaired by Paradox Anomaly. Map ----- +----------------------------------------------------+ | ??????????????????????????????????????? | | ??????????????????????????????????????? | | ??????????????????????????????????????? | | ??????????????????????????????????????? | | ??????????????????????????????????????? | | ??????????????????????????????????????? | | ??????????????#############???????????? | | ?????????????# #???????????? | | ?????????????# #???????????? | | ?????????????# = """ """ #???????????? | | ?????????????# """ """ #???????????? | | ?????????????# """ """ #???????????? | | ?????????????#######+#############????? | | ?????????????????# ## """ #????? | | ?????????????????# ## "T" #????? | | ?????????????????# + #????? | | ?????????????????# % ## % #????? | | ?????????????????# ## #????? | | ?????????????????## ### """ #????? | | ????????????????### #?# """ ###### | | ?????####????###### %### """ ##### | | ????## ########### # # """""" | | ????# ##### ###+#####+## | | ????# A %% | | ????# ^ < | | ????#! n@ | | ????## ############+## #" | | ?????#### #### " # #" " | | ??????### # ##### # """""" | | ??????# # # # # """ + "####" | | ??????### # # # """ # | | ???????##= # ##### = """ "# | | ??????### # #???# %""" "# | | ??????# # # #???# "T" """ ## | | ??????### # #???# ## | | ???????## " #???##########"# #"""#### | | ??????# # %" #????????????### # #??? | | ??????### " #????????????# "%# ###??? | | ???????## " #???????????#### ###????? | | ??????? # " #???????#######" " #????? | | ??????### ""######### #" " #????? | | ???????#" ## ###????? | | ?###???#" #" " #????? | | ?# ? " ## " #????? | | ?# " "########## ## #"#????? | | ?# """ " "#????????## ### #" ????? | | ?# """ " "########### #?# #" ???? | | ?# """ # # ## #?# #? "??? | | ?? ?? # # ## #?# #? ""?? | | ?#???#### # ## #?# #?? ?? | +----------------------------------------------------+ Best States ------------- Heat Dissipation 25 Energy Generation 10 Energy Capacity 125 Matter Stores 300 Matter Capacity 300 Sight Range 16 Terrain Scan Density 10 Evasion (%) 55 Recoil Reduction 2 Item Schematics ----------------- None Robot Schematics ------------------ None Fabricated ------------ Nothing Alien Tech Used ----------------- None Achievements -------------- None Challenges ------------ None Game ------ Seed SapperDispersionTriangulator Manual? 0 Play Time 00:08:24 Cumulative 74.7 hours Start 2022.03.22 @ 06:34:08 End 2022.03.22 @ 06:41:22 Sessions 1 Manual Loads 0 Difficulty Rogue Special Mode Halloween2019/Abominations Game No. 55 Rogue 55 Adventurer 0 Explorer 0 Win Type - Total 0 Types 0/0/0/0/0/0/0/0/0 Lore% 44 Gallery% 54 Achievement% 39 Wizard Run 0 Options --------- ASCII 0 Keyboard 0 Movement Arrows Keybinds 1 Fullscreen 1 Font 18/TerminusBold Map View 76x50 Tactical HUD 0 Map Filters NONE Filters NONE Steam 1 RUN: daaf1d0a-085e-4129-bbc2-2f2760eda205